Cogmind - Beta 12 @@@ ROGUE MODE // 2023.05.22 @ 13:16:36 Player: Inkie Result: Self-destructed Performance ------------- Evolutions (2) 1000 Regions Visited (5) 1000 Robots Destroyed (77) 385 Value Destroyed (2477) 2477 Prototype IDs (7) 140 Alien Tech Used (0) 0 Bonus (474) 474 TOTAL SCORE: 5476 Bonus ------- High Alert Combat Kills 105 Follower Combat Kills 268 Entered Garrisons 200 Friendly Fire -99 Cogmind --------- Core Integrity 120/550 Matter 300/300 Energy 100/100 System Corruption 0% Temperature Cool (0) Movement Rolling (180) Ox6 Location -8/Garrison Parts ------- > --- POWER (1) -------- (None) > --- PROPULSION (2) --- Armored Wheel > --- UTILITY (6) ------ Huge Storage Unit Core Shielding Propulsion Shielding > --- WEAPON (2) ------- (None) > --- INVENTORY (25) --- Light Treads Light Treads Improved Flight Unit Heat Sink Cooling System Large Storage Unit High-capacity Battery (250) Experimental Sensor Array Shield Generator Hacking Suite Hacking Suite Hacking Suite Hacking Suite Trap Extractor (0/4) Trap Extractor (0/4) Heavy Assault Rifle Plasma Cutter Katana Peak State ------------ > --- POWER ------------ Deuterium Engine > --- PROPULSION ------- Wheel Wheel > --- UTILITY ---------- Improved Heat Sink Improved Heat Sink Huge Storage Unit Improved Power Shielding Propulsion Shielding Propulsion Shielding > --- WEAPON ----------- Improved Medium Laser Advanced Beam Cannon > --- INVENTORY -------- Light Nuclear Core Light Treads Light Treads Compact Wheel Armored Wheel Improved Flight Unit Heat Sink Cooling System Large Storage Unit Experimental Sensor Array Shield Generator Hacking Suite Hacking Suite Hacking Suite Hacking Suite Trap Extractor Trap Extractor Improved EM Shotgun Improved EM Shotgun Improved EM Shotgun Heavy Assault Rifle Plasma Cutter [Rating: 28] Favorites ----------- Power Light Nuclear Core Engine Ion Engine Power Core Light Nuclear Core Propulsion Wheel Treads Light Treads Wheel Wheel Flight Unit Improved Flight Unit Utility Heat Sink Device Heat Sink Storage Huge Storage Unit Protection Propulsion Shielding Weapon Improved Assault Rifle Energy Gun Improved EM Shotgun Energy Cannon Advanced Beam Cannon Ballistic Gun Improved Assault Rifle Special Weapon Plasma Cutter Slashing Weapon Katana Build | -11 -10 -10 -9 -8 -8 ------- Run | Jun Mat Min Mat Mat Gar Slots Evolved 4 | . . . 2 2 . Power . | . . . . . . Propulsion . | . . . . . . Utility 4 | . . . 2 2 . Weapon . | . . . . . . Parts Attached 69 | 6 7 9 28 3 16 Power 9 | 1 . 2 4 . 2 Engine 6 | 1 . 1 4 . . Core 3 | . . 1 . . 2 Reactor . | . . . . . . Propulsion 14 | 2 2 2 6 . 2 Treads 4 | 2 . . 2 . . Leg . | . . . . . . Wheel 9 | . 2 2 3 . 2 Hover . | . . . . . . Flight 1 | . . . 1 . . Utility 17 | 1 2 3 6 2 3 Device 7 | . . 3 2 . 2 Storage 5 | 1 2 . 1 1 . Processor . | . . . . . . Hackware . | . . . . . . Protection 5 | . . . 3 1 1 Artifact . | . . . . . . Weapon 29 | 2 3 2 12 1 9 Energy Gun 15 | 2 1 . 8 1 3 Energy Cannon 4 | . . . 1 . 3 Ballistic Gun 7 | . 2 2 2 . 1 Ballistic Cannon . | . . . . . . Launcher . | . . . . . . Special Weapon 1 | . . . 1 . . Impact Weapon . | . . . . . . Slashing Weapon 2 | . . . . . 2 Piercing Weapon . | . . . . . . Special Melee Weapon . | . . . . . . Unidentified Prototypes 7 | . 2 . 5 . . Parts Lost 30 | . 1 7 8 . 14 Power 5 | . . 2 . . 3 Propulsion 10 | . 1 3 3 . 3 Utility 5 | . . . 1 . 4 Weapon 10 | . . 2 4 . 4 Highest Loss Streak 4 | . 1 3 3 . 4 To Critical Strikes . | . . . . . . Average Slot Usage (%) 80 | . 84 88 73 83 81 Engine 6 | . 14 6 3 9 2 Core 5 | . . 7 7 . 2 Treads 4 | . 14 . 4 . . Wheel 13 | . 13 17 10 18 12 Device 9 | . . 13 8 9 16 Storage 11 | . 14 14 11 9 9 Protection 5 | . . . 4 20 20 Energy Gun 5 | . 3 . 9 9 6 Energy Cannon 2 | . . . 3 9 5 Ballistic Gun 15 | . 24 27 9 . 2 Naked Turns . | . . . . . . Heaviest Build 102 | 13 91 92 92 101 102 Greatest Support 40 | 40 40 32 40 20 28 Greatest Overweight (x) 10 | . 3 9 10 5 9 Average Overweight (x) 2 | . . 4 2 2 6 Largest Inventory Capacity 25 | 8 25 25 25 25 25 Average Capacity 19 | 6 10 25 18 19 25 Most Carried 22 | . 9 9 16 20 22 Average Carried 11 | . 6 8 13 16 19 Final Capacity 25 | 8 25 25 15 25 25 Final Carried 20 | . 9 8 15 20 18 Class Distribution -------------------- 92% | Mutant 7% | Scavenger-Mutant Dominant Class ---------------- Mutant | -10/Materials Mutant | -10/Mines Mutant | -9/Materials Mutant | -8/Materials Scavenger-Mutant | -8/Garrison Resources | -11 -10 -10 -9 -8 -8 ----------- Run | Jun Mat Min Mat Mat Gar Matter Collected 1390 | 215 262 328 402 . 183 Remotely . | . . . . . . Salvage Created 2949 | . 446 517 1357 53 576 Parts 186 | . 35 33 88 4 26 Haulers Intercepted 5 | . 2 . 3 . . Recyclers Shooed 2 | . 1 . 1 . . Parts Field Recycled . | . . . . . . Retrieved Matter . | . . . . . . Parts Self-Destructed . | . . . . . . Prevented . | . . . . . . Kills | -11 -10 -10 -9 -8 -8 ------- Run | Jun Mat Min Mat Mat Gar Combat Hostiles Destroyed 57 | . 10 15 20 1 11 Melee 1 | . . . . . 1 Guns 45 | . 10 15 15 1 4 Cannons 6 | . . . 3 . 3 AOE 4 | . . . 1 . 3 Classes Destroyed 12 | . 6 1 4 . 1 Worker 1 | . . 1 . . . Builder 3 | . . . 3 . . Tunneler 1 | . 1 . . . . Hauler 5 | . 2 . 3 . . Recycler 2 | . . . 2 . . Operator 6 | . 3 . 3 . . Watcher 2 | . 1 . 1 . . Swarmer 14 | . 6 6 2 . . Grunt 34 | . 4 9 13 . 8 Brawler 1 | . . . 1 . . Duelist 3 | . . . . . 3 Sentry 5 | . . . 4 1 . Best Kill Streak 6 | . 4 3 6 1 3 Combat Bots Only 6 | . 4 3 6 1 3 Max Kills in Single Turn 2 | . 2 2 2 1 2 Gunslinging 1 | . . 1 . . . Exploded 2 | . . . 1 . 2 Melee 1 | . . . . . 1 Uniques/NPCs Destroyed . | . . . . . . Combat | -11 -10 -10 -9 -8 -8 -------- Run | Jun Mat Min Mat Mat Gar Damage Taken 3720 | . 448 583 1050 30 1609 Core 871 | . 90 110 241 15 415 Absorbed by Shields . | . . . . . . Redirected to Shielding 211 | . . . . 4 207 Regen/Repaired (Parts) 11 | . . . 11 . . Core Remaining (%) 53 | 100 . 20 39 . . Volleys Fired 180 | . 36 35 68 2 39 Largest 2 | . 2 2 2 2 2 Hottest 124 | . 46 46 124 124 124 Shots Fired 331 | . 72 67 132 4 56 Gun 298 | . 72 67 115 2 42 Cannon 30 | . . . 14 2 14 Launcher . | . . . . . . Special 3 | . . . 3 . . Kinetic 195 | . 72 67 45 . 11 Thermal 49 | . . . 21 4 24 Explosive . | . . . . . . Electromagnetic 87 | . . . 66 . 21 Robot Hit Streak 16 | . 11 16 14 3 9 Robot Miss Streak 5 | . 3 4 5 . 5 Penetration Max . | . . . . . . Secondary Targets 12 | . 2 5 5 . . Max Gunslinging Chain 1 | . 1 1 1 . . Shots Hit Robots 251 | . 50 49 98 3 51 Core Hits 125 | . 21 23 52 2 27 Critical Kills . | . . . . . . Critical Parts Destroyed 1 | . . 1 . . . Critical Strikes 2 | . . 1 . . 1 Burn 1 | . . . . . 1 Destroy 1 | . . 1 . . . Melee Attacks 16 | . . . . . 16 Impact . | . . . . . . Slashing 16 | . . . . . 16 Piercing . | . . . . . . Sneak Attacks . | . . . . . . Combat Hostiles . | . . . . . . Follow-up Attacks . | . . . . . . Damage Inflicted 4803 | . 782 779 1861 55 1326 Guns 3559 | . 782 779 1444 34 520 Cannons 351 | . . . 165 21 165 Explosions 496 | . . . 218 . 278 Melee 363 | . . . . . 363 Ramming . | . . . . . . Kinetic 2140 | . 782 779 467 . 112 Thermal 1105 | . . . 469 55 581 Explosive . | . . . . . . Electromagnetic 1195 | . . . 925 . 270 Impact . | . . . . . . Slashing 363 | . . . . . 363 Piercing . | . . . . . . Highest Corruption 2 | . . . 2 . . Average Corruption 2 | . . . 2 . . Corruption Purged . | . . . . . . Corruption Blocked . | . . . . . . Effects 12 | . . . 12 . . Message Errors 5 | . . . 5 . . Matter Fused 2 | . . . 2 . . Energy Discharges 1 | . . . 1 . . Data Loss (minor) 3 | . . . 3 . . Misfires 1 | . . . 1 . . Overload Shots . | . . . . . . Overflow Damage 28 | . . . 10 . 18 Projectiles 2 | . . . 2 . . Explosions 8 | . . . 8 . . Melee 18 | . . . . . 18 Knockbacks . | . . . . . . Impact . | . . . . . . Kinetic . | . . . . . . Secondary . | . . . . . . Self-Inflicted Damage 211 | . . . 125 . 86 Shots 4 | . . . 2 . 2 Rammed 1 | . 1 . . . . Targets Rammed 1 | . 1 . . . . Kicked . | . . . . . . Crushed . | . . . . . . Highest Temperature 331 | . 10 12 331 45 198 Average Temperature 74 | . 2 5 86 24 102 Received Heat Transfer 1215 | . 150 306 399 9 351 Effects 1 | . . . 1 . . Energy Bleed 1 | . . . 1 . . Siege Activations . | . . . . . . Robots Corrupted 2 | . . . 2 . . Combat Hostiles 1 | . . . 1 . . Parts Fried 8 | . . . 7 . 1 Impact Corruptions . | . . . . . . Robots Melted . | . . . . . . Combat Hostiles . | . . . . . . Parts Melted 2 | . . . 1 . 1 Heat Transferred 1845 | . . . 818 111 916 Parts Sabotaged . | . . . . . . Parts Stolen . | . . . . . . Parts Stripped . | . . . . . . Power Chain Reactions 6 | . . . 3 . 3 Missiles Intercepted . | . . . . . . Alert | -11 -10 -10 -9 -8 -8 ------- Run | Jun Mat Min Mat Mat Gar Peak Influence 518 | . 320 265 518 286 479 Initial 214 | . . 100 23 214 185 Average 235 | . 122 164 297 246 357 Maximum Alert Level 2 | . 1 1 2 1 2 Low Security (%) 39 | 100 67 46 34 . 3 Level 1 38 | . 33 53 25 100 52 Level 2 22 | . . . 40 . 43 Level 3 . | . . . . . . Level 4 . | . . . . . . Level 5 . | . . . . . . High Security . | . . . . . . Max Security . | . . . . . . Squads Dispatched 8 | . 4 . 4 . . Investigation 3 | . 2 . 1 . . Extermination . | . . . . . . Reinforcement 5 | . 2 . 3 . . Assault . | . . . . . . Garrison . | . . . . . . Intercept . | . . . . . . Searches Triggered . | . . . . . . Construction Impeded . | . . . . . . Haulers Reinforced . | . . . . . . Active Scanning Responses . | . . . . . . Cargo Convoy Interrupts . | . . . . . . Stealth | -11 -10 -10 -9 -8 -8 --------- Run | Jun Mat Min Mat Mat Gar Distress Signals 3 | . 1 . 2 . . Communications Jammed . | . . . . . . Distress Signals . | . . . . . . Times Spotted 95 | . 19 14 42 1 19 Peak Tracking Total 7 | . 4 3 6 1 7 Tactical Retreats 3 | . . . 1 . 2 Traps | -11 -10 -10 -9 -8 -8 ------- Run | Jun Mat Min Mat Mat Gar Traps Triggered 6 | . 1 . 3 1 1 Indirectly . | . . . . . . Trap Hack Attempts . | . . . . . . Triggered . | . . . . . . Disarmed . | . . . . . . Reprogrammed . | . . . . . . Reused . | . . . . . . Traps Extracted . | . . . . . . Installed . | . . . . . . Triggered . | . . . . . . Machines | -11 -10 -10 -9 -8 -8 ---------- Run | Jun Mat Min Mat Mat Gar Machines Disabled 8 | . 1 . 5 . 2 Max in Single Turn 1 | . 1 . 1 . 1 Garrison Relay 2 | . . . . . 2 Machines Repaired . | . . . . . . Machines Sabotaged . | . . . . . . Overloaded Fab Kills . | . . . . . . Hacking | -11 -10 -10 -9 -8 -8 --------- Run | Jun Mat Min Mat Mat Gar Machines Accessed 13 | . 6 . 5 2 . Terminals 8 | . 4 . 3 1 . Fabricators . | . . . . . . Repair Stations 1 | . . . 1 . . Recycling Units 2 | . 2 . . . . Scanalyzers 1 | . . . 1 . . Garrison Access 1 | . . . . 1 . Total Hacks 29 | . 14 . 10 5 . Successful 17 | . 6 . 8 3 . Failed 12 | . 8 . 2 2 . Catastrophic 1 | . 1 . . . . Database Lockouts . | . . . . . . Manual 17 | . 10 . 6 1 . Terminals 20 | . 12 . 6 2 . Fabricators . | . . . . . . Repair Stations 2 | . . . 2 . . Recycling Units 2 | . 2 . . . . Scanalyzers 2 | . . . 2 . . Garrison Access 3 | . . . . 3 . Terminal Hacks 4 | . 1 . 1 2 . Record 1 | . . . . 1 . Part Schematic 1 | . . . 1 . . Robot Schematic 1 | . . . . 1 . Branch Access Points 1 | . 1 . . . . Fabricator Hacks . | . . . . . . Repair Station Hacks 2 | . . . 2 . . Scan Component 1 | . . . 1 . . Repair 1 | . . . 1 . . Recycling Unit Hacks . | . . . . . . Scanalyzer 2 | . . . 2 . . Insert Component 1 | . . . 1 . . Analyze 1 | . . . 1 . . Garrison Access Hacks 1 | . . . . 1 . Unlock Access 1 | . . . . 1 . Unauthorized Hacks 8 | . 5 . 3 . . Terminals 6 | . 3 . 3 . . Assimilate 1 | . . . 1 . . Botnet 3 | . 2 . 1 . . Operators 2 | . 1 . 1 . . Fabricators . | . . . . . . Repair Stations . | . . . . . . Recycling Units 2 | . 2 . . . . Tunnel 2 | . 2 . . . . Scanalyzers . | . . . . . . Garrison Access . | . . . . . . Data Cores Recovered 1 | . 1 . . . . Used . | . . . . . . Hacking Detections 8 | . 3 . 4 1 . Full Trace Events . | . . . . . . Feedback Events . | . . . . . . Feedback Blocked . | . . . . . . Robot Schematics Acquired 1 | . . . . 1 . Robots Built . | . . . . . . Authchips . | . . . . . . Time . | . . . . . . Total Robot Build Rating . | . . . . . . Part Schematics Acquired 2 | . . . 2 . . Parts Built . | . . . . . . Authchips . | . . . . . . Time . | . . . . . . Total Part Build Rating . | . . . . . . Parts Repaired 1 | . . . 1 . . Time 108 | . . . 108 . . Parts Recycled . | . . . . . . Recycled Matter . | . . . . . . Retrieved Matter . | . . . . . . Retrieved Components . | . . . . . . Parts Scanalyzed 1 | . . . 1 . . Part Schematics Acquired 1 | . . . 1 . . Parts Damaged . | . . . . . . Bothacking | -11 -10 -10 -9 -8 -8 ------------ Run | Jun Mat Min Mat Mat Gar Used RIF Installer . | . . . . . . Robots Hacked . | . . . . . . Non-combat . | . . . . . . Combat . | . . . . . . Robot Hacks Applied . | . . . . . . Relay Couplers Released 7 | . . . . . 7 Machine Destruction 7 | . . . . . 7 Fabnet Peak Effective % . | . . . . . . Robots Rewired . | . . . . . . Allies Hacked . | . . . . . . Hacks Repelled . | . . . . . . Allies | -11 -10 -10 -9 -8 -8 -------- Run | Jun Mat Min Mat Mat Gar Total Allies 4 | . . 3 1 . . Largest Group 3 | . . 3 3 . . Highest-Rated Group 80 | . . 80 80 . . Highest-Rated Ally 31 | . . 31 31 . . Total Orders 1 | . . . 1 . . STAY 1 | . . . 1 . . Ally Attacks 55 | . . . 55 . . Total Damage 912 | . . . 912 . . Kills 13 | . . . 13 . . Allies Corrupted . | . . . . . . Allies Melted . | . . . . . . Intel | -11 -10 -10 -9 -8 -8 ------- Run | Jun Mat Min Mat Mat Gar Robot Analysis Total . | . . . . . . Derelict Logs Recovered 1 | . . 1 . . . Drone Launches . | . . . . . . Drone Recoveries . | . . . . . . Exploration | -11 -10 -10 -9 -8 -8 ------------- Run | Jun Mat Min Mat Mat Gar Turns Passed 4947 | 69 1000 1100 1980 113 685 Spaces Moved 2580 | 45 562 591 1030 71 281 Core 15 | 10 . . 5 . . Treads 354 | 35 163 . 156 . . Legs . | . . . . . . Wheels 2211 | . 399 591 869 71 281 Hover . | . . . . . . Flight . | . . . . . . Fastest Speed 50 | 50 90 130 95 95 140 Average Speed 145 | 135 118 160 143 114 185 Slowest Speed 550 | 160 160 215 550 155 215 Overloaded Moves . | . . . . . . Propulsion Burnouts . | . . . . . . Robots Hopped . | . . . . . . Cave-ins Triggered . | . . . . . . Exploration Rate (%) 48 | 4 83 99 80 8 19 Regions Visited 5 Branch Regions 1 Pre-discovered Areas 2 | . 2 . . . . Known Exits Taken 2 | . 1 . . 1 . Unknown Exits Taken 3 | 1 . 1 1 . . Scrap Searched 1 | . . 1 . . . Spaces Dug . | . . . . . . Terrain Destroyed 58 | . . . 42 . 16 Melee . | . . . . . . Projectile . | . . . . . . AOE 58 | . . . 42 . 16 Terrain Rammed . | . . . . . . Walls Destroyed . | . . . . . . Machines Disabled . | . . . . . . Actions | -11 -10 -10 -9 -8 -8 --------- Run | Jun Mat Min Mat Mat Gar Total 3392 | 50 823 672 1391 97 359 Wait 492 | . 202 37 233 16 4 Move 2576 | 44 561 590 1029 71 281 Hop . | . . . . . . Pick Up 39 | . 10 1 20 5 3 Fast Attach 30 | 6 5 3 9 2 5 Attach 22 | . 2 4 9 . 7 Detach 3 | . 1 . 2 . . Swap 17 | . . 2 10 1 4 Drop 16 | . 5 . 11 . . Fire 180 | . 36 35 68 2 39 Melee 16 | . . . . . 16 Ram 1 | . 1 . . . . Kick . | . . . . . . Crush . | . . . . . . Escape Stasis . | . . . . . . Rewire . | . . . . . . Trap . | . . . . . . Miscellaneous . | . . . . . . Route ------- -11/Junkyard -10/Materials (discovered 4 exits: *Mat x3 / *Min) -10/Mines (discovered 2 exits: *Mat x2) -9/Materials (discovered 2 exits: *Mat / [*Min]) -8/Materials -8/Garrison History --------- Turn | Location | Event 8 | -11/Junkyard | Discovered new exit (range 16) 70 | -11/Junkyard | Entered Materials 301 | -10/Materials | Build established: Mutant 553 | -10/Materials | Discovered new exit (range 5) 659 | -10/Materials | Discovered new exit (range 8) 714 | -10/Materials | Identified exit to Mines 758 | -10/Materials | Discovered new exit (range 10) 1070 | -10/Materials | Entered Mines 1106 | -10/Mines | Discovered new exit (range 9) 1227 | -10/Mines | Core integrity fell below 50% 1319 | -10/Mines | Found a damaged Exp. Sensor Array with a note attached 1322 | -10/Mines | Found Prototype Device 1415 | -10/Mines | A weapon hastily lodged in a ceiling crevice suddenly fell to the ground 1607 | -10/Mines | Lost 3 parts (1p2w) 1662 | -10/Mines | Escorted by a lone wolf Derelict 1703 | -10/Mines | Discovered new exit (range 13) 2170 | -10/Mines | Entered Materials 2170 | -9/Materials | Accompanied by 3 allies 2170 | -9/Materials | Evolved 2 slots: Utility x2 2175 | -9/Materials | Led the pair of lost Derelicts to an unsafe place 2920 | -9/Materials | Lost 3 parts (1n1u1w) 3172 | -9/Materials | Discovered new exit (range 12) 3367 | -9/Materials | Core integrity fell below 50% 3392 | -9/Materials | Lost 3 parts (1n2w) 3676 | -9/Materials | Discovered new exit (range 15) 3883 | -9/Materials | Identified Exp. Sensor Array 3994 | -9/Materials | Repaired Exp. Sensor Array 4150 | -9/Materials | Entered another Materials area 4150 | -8/Materials | Evolved 2 slots: Utility x2 4263 | -8/Materials | Identified exit to Garrison 4263 | -8/Materials | Entered Garrison 4290 | -8/Garrison | Triggered checkpoint 4435 | -8/Garrison | Garrison Relay disabled 4447 | -8/Garrison | Lost 4 parts (1n1u2w) 4608 | -8/Garrison | Triggered checkpoint 4850 | -8/Garrison | Core integrity fell below 50% 4873 | -8/Garrison | Garrison Relay disabled 4948 | -8/Garrison | Self-destructed Last Messages --------------- 04860_ Acquired 30 matter. 04867_ Acquired Core Shielding. 04873_ Garrison Relay disabled. 04873_ Relay Coupler [Demolisher] tumbles out of relay unit. 04873_ Relay Coupler [NC] tumbles out of relay unit. 04873_ Relay Coupler [Grunt] tumbles out of relay unit. 04923_ Knocked back. 04924_ Imp. Heat Sink destroyed. 04924_ Knocked back. 04924_ Triggered Alarm Trap. 04924_ An alarm sounds. 04930_ Adv. Beam Cannon severed. 04933_ S-10 Pest destroyed. 04933_ Imp. Heat Sink destroyed. 04936_ Destroyed Surge Thruster. 04938_ Propulsion Shielding destroyed. 04938_ S-10 Pest destroyed. 04943_ Destroyed Reaction Control System. 04944_ Com. Wheel destroyed. 04947_ Katana severed. Map ----- +----------------------------------------------------+ | ?????????????????????????????????????????????????? | | ?????????????????????????????????????????????????? | | ?????????????????????????????????????????????????? | | ?????????????????????????????????????????????????? | | ?????????????????????????????????????????????????? | | ?????????????????????????????????????????????????? | | ?????????????????????????????????????????????????? | | ?????????????????????????????????????????????????? | | ??????????????????????????? ???????????????????? | | ??????????????????????????? ??????????????????? | | ??????????????????????????" ??????????????????? | | ??????????????????????????" ??????????????????? | | ??????????????????????????# #??????????????????? | | ??????????????????###?????# ##?????????????????? | | ?????????????????? ????? ?????????????????? | | ?????????????????? ????? ??????????????????? | | ?????????????????? #?????# ??????????????????? | | ?????????????????# #?????# #??????????????????? | | ?????????????????# #?????# #??????????????????? | | ?????????????????# #?????# #??#???????????????? | | ?????????????????# #?????# ## ????????????????? | | ?????????????????# #????? ?????????????????? | | ?????????????????# #?????# #??????????????????? | | ?????????????????# #?????# #??????????????????? | | ################## ####### #??????????????????? | | [% s /@c #??????????????????? | | == c%[s#??????????????????? | | [%* ^ % #??????????????????? | | ########### =##### ######### #??????????????????? | | ????????###%%#???# ###??#??# #??????????????????? | | ######### = [#???# ## #??# #??????????????????? | | # %[ #???# " #??# #??????????????????? | | #### #### #???# ####??# #??????????????????? | | ???# #??### #???# ###?????# #??????????????????? | | ???# #???## ##??# #???????# #??????????????????? | | ???# #???#" "#??# #???????# #??????????????????? | | ???# #??##" "#??# #???????# #??????????????????? | | ???# #### =%["#??# ######### #??????????????????? | | ???## %%["#??# #??????????????????? | | ????#!!!# =!"#??# ### !!#####??????????????????? | | ????####### ##??# #?#####??????????????????????? | | ??????????# ##??# #????????????????????????????? | | ??????????# "#??# #????????????????????????????? | | ????????###%%"##?# ###??????????????????????????? | | ????????#"# =" #?# #"#??????????????????????????? | | ????????#"! # #?# ! #??????????????????????????? | | ????????#!! ###?# !!"#??????????????????????????? | | ????????#"! #???# "#??????????????????????????? | | ????????#"# ##### #"#??????????????????????????? | | ????????### "* %"! ###??????????????????????????? | +----------------------------------------------------+ Best States ------------- Heat Dissipation 59 Energy Generation 14 Energy Capacity 275 Matter Stores 300 Matter Capacity 300 Sight Range 16 Terrain Scan Density 10 Core Shielding 20 Power Shielding 66 Propulsion Shielding 33 Evasion (%) 42 Recoil Reduction 2 Item Schematics ----------------- Hacking Suite | -9/Materials | Scanalyzed Plasma Cutter | -9/Materials | Hacked Robot Schematics ------------------ M-28 Smith | -8/Materials | Hacked Fabricated ------------ Nothing Alien Tech Used ----------------- None Achievements -------------- None Challenges ------------ None Game ------ Seed CompactPhasingDetector Manual? 0 Play Time 00:27:31 Cumulative 506.3 hours Start 2023.05.22 @ 12:01:11 End 2023.05.22 @ 13:16:36 Sessions 1 Manual Loads 0 Difficulty Rogue Special Mode None Game No. 541 Rogue 532 Adventurer 8 Explorer 1 Win Type - Total 10 Types 5/2/3/0/0/0/0/0/0 Lore% 82 Gallery% 91 Achievement% 71 Wizard Run 0 Options --------- ASCII 0 Keyboard 0 Movement Numpad Keybinds 1 Fullscreen 2 Font 18/Terminus Map View 76x50 Tactical HUD 1 Map Filters NONE Filters NONE Steam 1 RUN: 3b8338dd-1004-4e6d-9046-95ba08763a5c